[Event "*** Titled Tuesday 3|2 Blitz"]
[Site "Chess.com"]
[Date "2016.08.02"]
[Round "1"]
[White "StellarChessPro"]
[Black "FairChess_on_YouTube"]
[Result "0-1"]
[WhiteElo "2349"]
[BlackElo "2719"]
[TimeControl "180+2"]
[EndTime "11:06:36 PDT"]
[Termination "FairChess_on_YouTube won by resignation"]

1. d4 {[%clk 0:03:01.9]} 1... d5 {[%clk 0:03:00.3]} 2. Nf3 {[%clk 0:03:02.5]}
2... Nf6 {[%clk 0:02:59]} 3. e3 {[%clk 0:03:03.7]} 3... Bf5 {[%clk 0:02:57.1]}
4. Bd3 {[%clk 0:03:04.9]} 4... e6 {[%clk 0:02:57.4]} 5. O-O {[%clk 0:03:05.6]}
5... Bg6 {[%clk 0:02:56.4]} 6. Ne5 {[%clk 0:03:06.9]} 6... Bd6 {[%clk
0:02:56.4]} 7. f4 {[%clk 0:03:07.5]} 7... c5 {[%clk 0:02:54.8]} 8. c3 {[%clk
0:03:08.2]} 8... Nc6 {[%clk 0:02:54.9]} 9. Qe2 {[%clk 0:03:07.8]} 9... Bxd3
{[%clk 0:02:50.4]} 10. Qxd3 {[%clk 0:03:08.4]} 10... O-O {[%clk 0:02:50.9]} 11.
Nd2 {[%clk 0:03:09]} 11... Rc8 {[%clk 0:02:49.9]} 12. h3 {[%clk 0:03:10.1]}
12... Qb6 {[%clk 0:02:43.7]} 13. Kh2 {[%clk 0:03:07.2]} 13... Rfd8 {[%clk
0:02:44.3]} 14. g4 {[%clk 0:03:06.6]} 14... Nd7 {[%clk 0:02:40.9]} 15. Nxd7
{[%clk 0:03:02.5]} 15... Rxd7 {[%clk 0:02:41.6]} 16. Nf3 {[%clk 0:03:04.4]}
16... f6 {[%clk 0:02:38.3]} 17. g5 {[%clk 0:02:56.3]} 17... f5 {[%clk
0:02:36.3]} 18. Ne5 {[%clk 0:02:53.8]} 18... Bxe5 {[%clk 0:02:36.7]} 19. fxe5
{[%clk 0:02:55.7]} 19... Qd8 {[%clk 0:02:35.9]} 20. Rg1 {[%clk 0:02:48.2]} 20...
Qe8 {[%clk 0:02:35.1]} 21. Qe2 {[%clk 0:02:47.3]} 21... Ne7 {[%clk 0:02:29.2]}
22. Bd2 {[%clk 0:02:46.7]} 22... Rdc7 {[%clk 0:02:21.8]} 23. Rg2 {[%clk
0:02:35.7]} 23... f4 {[%clk 0:02:09.4]} 24. exf4 {[%clk 0:02:32.3]} 24... cxd4
{[%clk 0:02:09.9]} 25. cxd4 {[%clk 0:02:31.5]} 25... Rc2 {[%clk 0:02:10.6]} 26.
Qd3 {[%clk 0:02:27.8]} 26... Nf5 {[%clk 0:02:07.9]} 27. Bc3 {[%clk 0:02:21.6]}
27... Rxg2+ {[%clk 0:02:08.7]} 28. Kxg2 {[%clk 0:02:21.3]} 28... Qh5 {[%clk
0:02:09.9]} 29. Rf1 {[%clk 0:02:16.2]} 29... h6 {[%clk 0:02:08.7]} 30. gxh6
{[%clk 0:02:14]} 30... gxh6 {[%clk 0:02:10.6]} 31. Kh2 {[%clk 0:02:13.3]} 31...
Kh8 {[%clk 0:02:09]} 32. Qf3 {[%clk 0:02:11.9]} 32... Qxf3 {[%clk 0:02:02.2]}
33. Rxf3 {[%clk 0:02:13.8]} 33... b5 {[%clk 0:02:02]} 34. a3 {[%clk 0:02:12.1]}
34... Kg7 {[%clk 0:02:02]} 35. Rf2 {[%clk 0:02:13]} 35... Kg6 {[%clk 0:02:02.7]}
36. Rg2+ {[%clk 0:02:14]} 36... Kh5 {[%clk 0:02:03.8]} 37. Rg4 {[%clk
0:01:57.9]} 37... Ra8 {[%clk 0:01:55.5]} 38. Rg1 {[%clk 0:01:53.9]} 38... a5
{[%clk 0:01:52.5]} 39. Rd1 {[%clk 0:01:38.8]} 39... a4 {[%clk 0:01:45.2]} 40.
Bb4 {[%clk 0:01:37.5]} 40... Rg8 {[%clk 0:01:44.2]} 41. Bc5 {[%clk 0:01:36.8]}
41... Rg3 {[%clk 0:01:41.3]} 42. Rc1 {[%clk 0:01:20.9]} 42... Rb3 {[%clk
0:01:40.4]} 43. Rc2 {[%clk 0:01:17.7]} 43... Kh4 {[%clk 0:01:41.3]} 44. Ba7
{[%clk 0:01:19]} 44... Rxh3+ {[%clk 0:01:39.3]} 45. Kg2 {[%clk 0:01:19.1]} 45...
Ne3+ {[%clk 0:01:39.5]} 0-1

[Event "*** Titled Tuesday 3|2 Blitz"]
[Site "Chess.com"]
[Date "2016.08.02"]
[Round "1"]
[White "TigranLPetrosyan"]
[Black "oggy1984"]
[Result "1-0"]
[WhiteElo "2659"]
[BlackElo "2318"]
[TimeControl "180+2"]
[EndTime "11:06:44 PDT"]
[Termination "TigranLPetrosyan won by resignation"]

1. g3 {[%clk 0:03:01.9]} 1... Nf6 {[%clk 0:02:54.3]} 2. Bg2 {[%clk 0:03:03.8]}
2... g6 {[%clk 0:02:56.2]} 3. Nf3 {[%clk 0:03:05.3]} 3... Bg7 {[%clk 0:02:57.5]}
4. O-O {[%clk 0:03:07.2]} 4... O-O {[%clk 0:02:58.1]} 5. d3 {[%clk 0:03:08.7]}
5... c5 {[%clk 0:02:54.9]} 6. e4 {[%clk 0:03:09.5]} 6... Nc6 {[%clk 0:02:55.7]}
7. c3 {[%clk 0:03:10.4]} 7... Rb8 {[%clk 0:02:49.5]} 8. Re1 {[%clk 0:03:07.4]}
8... b5 {[%clk 0:02:44.9]} 9. d4 {[%clk 0:03:03]} 9... cxd4 {[%clk 0:02:37.3]}
10. e5 {[%clk 0:02:55.5]} 10... Ne8 {[%clk 0:02:34.6]} 11. cxd4 {[%clk
0:02:53.5]} 11... d5 {[%clk 0:02:31.2]} 12. h3 {[%clk 0:02:50.2]} 12... Bf5
{[%clk 0:02:27]} 13. g4 {[%clk 0:02:43.1]} 13... Be4 {[%clk 0:02:26.3]} 14. Nbd2
{[%clk 0:02:44.1]} 14... Bxf3 {[%clk 0:02:26.6]} 15. Nxf3 {[%clk 0:02:46]} 15...
e6 {[%clk 0:02:27.5]} 16. Be3 {[%clk 0:02:44.9]} 16... Qb6 {[%clk 0:02:26]} 17.
Qd2 {[%clk 0:02:43.8]} 17... Nc7 {[%clk 0:02:24.6]} 18. h4 {[%clk 0:02:42.7]}
18... Na5 {[%clk 0:02:03.2]} 19. b3 {[%clk 0:02:42.8]} 19... b4 {[%clk
0:02:02.7]} 20. Rac1 {[%clk 0:02:38]} 20... Nb5 {[%clk 0:02:02.3]} 21. Qxb4
{[%clk 0:02:38]} 21... Rfc8 {[%clk 0:01:59.2]} 22. Rxc8+ {[%clk 0:02:29.6]}
22... Rxc8 {[%clk 0:01:58.6]} 23. Rc1 {[%clk 0:02:30.3]} 23... Rxc1+ {[%clk
0:01:59.2]} 24. Bxc1 {[%clk 0:02:32.2]} 24... Bf8 {[%clk 0:01:59.1]} 25. Qd2
{[%clk 0:02:30.5]} 25... Nc6 {[%clk 0:01:58.3]} 26. Bb2 {[%clk 0:02:30.8]} 26...
Bb4 {[%clk 0:01:43.8]} 27. Qd3 {[%clk 0:02:31.8]} 27... Ba3 {[%clk 0:01:39.9]}
28. Bxa3 {[%clk 0:02:28.1]} 28... Nxa3 {[%clk 0:01:41.8]} 29. Bf1 {[%clk
0:02:26.9]} 29... Qb4 {[%clk 0:01:33.8]} 30. h5 {[%clk 0:02:16]} 30... Qb6
{[%clk 0:01:20.6]} 31. h6 {[%clk 0:02:15.4]} 31... a5 {[%clk 0:01:16.7]} 32. Qc3
{[%clk 0:02:12.8]} 32... Kf8 {[%clk 0:01:02.4]} 33. Kg2 {[%clk 0:02:06.1]} 33...
Nb1 {[%clk 0:00:41.3]} 34. Qc1 {[%clk 0:01:56.8]} 34... Nxd4 {[%clk 0:00:36.7]}
35. Nxd4 {[%clk 0:01:53.7]} 35... Qxd4 {[%clk 0:00:37]} 36. Qc8+ {[%clk
0:01:54.6]} 36... Ke7 {[%clk 0:00:36.2]} 37. Qc7+ {[%clk 0:01:56]} 1-0

[Event "*** Titled Tuesday 3|2 Blitz"]
[Site "Chess.com"]
[Date "2016.08.02"]
[Round "1"]
[White "Ginger_GM"]
[Black "brauliocuarta"]
[Result "1-0"]
[WhiteElo "2389"]
[BlackElo "2035"]
[TimeControl "180+2"]
[EndTime "11:06:59 PDT"]
[Termination "Ginger_GM won by resignation"]

1. d4 {[%clk 0:03:01.3]} 1... Nf6 {[%clk 0:02:59.7]} 2. c4 {[%clk 0:03:01.6]}
2... c5 {[%clk 0:03:00.7]} 3. d5 {[%clk 0:03:01.9]} 3... b5 {[%clk 0:03:02.3]}
4. cxb5 {[%clk 0:03:01.3]} 4... a6 {[%clk 0:03:03.8]} 5. Nc3 {[%clk 0:03:01.9]}
5... axb5 {[%clk 0:03:03.2]} 6. e4 {[%clk 0:03:02]} 6... b4 {[%clk 0:02:57.9]}
7. Nb5 {[%clk 0:03:02.3]} 7... d6 {[%clk 0:02:59.1]} 8. Bc4 {[%clk 0:03:01.2]}
8... Nxe4 {[%clk 0:02:50.6]} 9. Qe2 {[%clk 0:02:57.7]} 9... Nf6 {[%clk
0:02:42.9]} 10. Bf4 {[%clk 0:02:57.2]} 10... Ra6 {[%clk 0:02:40]} 11. Nf3 {[%clk
0:02:30]} 11... Nh5 {[%clk 0:02:14.6]} 12. Nxd6+ {[%clk 0:02:12.8]} 12... Rxd6
{[%clk 0:02:13]} 13. Bb5+ {[%clk 0:02:12.9]} 13... Bd7 {[%clk 0:01:43.2]} 14.
Bxd6 {[%clk 0:02:11.7]} 14... Bxb5 {[%clk 0:01:31.9]} 15. Qxb5+ {[%clk
0:02:11.3]} 15... Nd7 {[%clk 0:01:33.7]} 16. Bxc5 {[%clk 0:01:59.2]} 16... Nf4
{[%clk 0:01:19.8]} 17. O-O {[%clk 0:01:57.2]} 17... e6 {[%clk 0:01:08.9]} 18.
Bxf8 {[%clk 0:01:48.8]} 18... Rxf8 {[%clk 0:00:58.2]} 19. dxe6 {[%clk
0:01:47.2]} 19... fxe6 {[%clk 0:00:55.8]} 20. Rad1 {[%clk 0:01:44.7]} 20... Rf5
{[%clk 0:00:48.9]} 21. Qa4 {[%clk 0:01:40.3]} 21... Nd5 {[%clk 0:00:48.5]} 22.
Nd4 {[%clk 0:01:30.7]} 22... Nb6 {[%clk 0:00:21.8]} 23. Qc6 {[%clk 0:01:17.6]}
23... Rf6 {[%clk 0:00:17.6]} 24. Rfe1 {[%clk 0:01:16.6]} 24... Kf7 {[%clk
0:00:16]} 25. Rxe6 {[%clk 0:01:16.3]} 25... Qb8 {[%clk 0:00:14.5]} 26. Rxf6+
{[%clk 0:01:14.5]} 26... Nxf6 {[%clk 0:00:15.5]} 27. Qe6+ {[%clk 0:01:14.9]}
27... Kg6 {[%clk 0:00:15.7]} 28. Rd3 {[%clk 0:01:14.5]} 28... h6 {[%clk
0:00:14.8]} 29. Rg3+ {[%clk 0:01:14]} 29... Kh7 {[%clk 0:00:16.3]} 30. Nf5
{[%clk 0:01:14.9]} 30... Nh5 {[%clk 0:00:11.6]} 31. Qg6+ {[%clk 0:01:14.7]}
31... Kh8 {[%clk 0:00:12.8]} 32. Qxh5 {[%clk 0:01:15.5]} 1-0

[Event "*** Titled Tuesday 3|2 Blitz"]
[Site "Chess.com"]
[Date "2016.08.02"]
[Round "1"]
[White "MFBerna"]
[Black "Cryptochess"]
[Result "0-1"]
[WhiteElo "2135"]
[BlackElo "2464"]
[TimeControl "180+2"]
[EndTime "11:07:12 PDT"]
[Termination "Cryptochess won by resignation"]

1. d4 {[%clk 0:02:42.7]} 1... Nf6 {[%clk 0:03:00.2]} 2. c4 {[%clk 0:02:44.6]}
2... e6 {[%clk 0:03:01.6]} 3. Nc3 {[%clk 0:02:45.2]} 3... Bb4 {[%clk 0:03:03.2]}
4. Qc2 {[%clk 0:02:45.8]} 4... Nc6 {[%clk 0:03:04.2]} 5. e3 {[%clk 0:02:44.2]}
5... d6 {[%clk 0:03:05.2]} 6. a3 {[%clk 0:02:44.7]} 6... Bxc3+ {[%clk
0:03:05.6]} 7. Qxc3 {[%clk 0:02:46.6]} 7... O-O {[%clk 0:03:06.5]} 8. Bd3 {[%clk
0:02:47.3]} 8... e5 {[%clk 0:03:07.2]} 9. Ne2 {[%clk 0:02:44.3]} 9... a5 {[%clk
0:03:01.4]} 10. O-O {[%clk 0:02:42.8]} 10... a4 {[%clk 0:03:02.6]} 11. Ng3
{[%clk 0:02:36.6]} 11... h6 {[%clk 0:02:58.8]} 12. d5 {[%clk 0:02:27.1]} 12...
Nb8 {[%clk 0:02:59]} 13. f4 {[%clk 0:02:18.1]} 13... exf4 {[%clk 0:02:53.9]} 14.
exf4 {[%clk 0:02:17.7]} 14... Nbd7 {[%clk 0:02:55.1]} 15. Kh1 {[%clk 0:02:14.5]}
15... Nc5 {[%clk 0:02:54.5]} 16. Bc2 {[%clk 0:02:13]} 16... Re8 {[%clk
0:02:55.9]} 17. Be3 {[%clk 0:02:10.8]} 17... Nce4 {[%clk 0:02:53.1]} 18. Nxe4
{[%clk 0:02:10.8]} 18... Nxe4 {[%clk 0:02:55]} 19. Qd4 {[%clk 0:02:09]} 19...
Bf5 {[%clk 0:02:33.2]} 20. Rae1 {[%clk 0:01:59.2]} 20... Ng3+ {[%clk 0:02:19.4]}
21. hxg3 {[%clk 0:02:00.1]} 21... Bxc2 {[%clk 0:02:21.1]} 22. Bf2 {[%clk
0:01:45.5]} 22... Qd7 {[%clk 0:02:19.4]} 23. c5 {[%clk 0:01:35.5]} 23... dxc5
{[%clk 0:02:12]} 24. Qxc5 {[%clk 0:01:37.4]} 24... Be4 {[%clk 0:02:11.3]} 25.
Kg1 {[%clk 0:01:27.6]} 25... Qxd5 {[%clk 0:02:05.7]} 26. Qxd5 {[%clk 0:01:24.5]}
26... Bxd5 {[%clk 0:02:07.6]} 27. Bd4 {[%clk 0:01:19.9]} 27... Bc4 {[%clk
0:02:05.8]} 28. Rxe8+ {[%clk 0:01:16.4]} 28... Rxe8 {[%clk 0:02:07.7]} 29. Rc1
{[%clk 0:01:13.6]} 29... b5 {[%clk 0:02:08.4]} 30. Bc3 {[%clk 0:01:04.6]} 30...
Re2 {[%clk 0:02:08.7]} 31. Re1 {[%clk 0:01:03.7]} 31... Rc2 {[%clk 0:01:54.6]}
32. Re5 {[%clk 0:00:49.6]} 32... c6 {[%clk 0:01:52.2]} 33. g4 {[%clk 0:00:23.3]}
33... Bd5 {[%clk 0:01:49.7]} 34. g5 {[%clk 0:00:24.9]} 34... Rxg2+ {[%clk
0:01:36.3]} 35. Kf1 {[%clk 0:00:26.5]} 35... Rg4 {[%clk 0:01:37]} 36. Bd2 {[%clk
0:00:23.8]} 36... hxg5 {[%clk 0:01:36.5]} 37. fxg5 {[%clk 0:00:20.4]} 37... Kh7
{[%clk 0:01:37.4]} 38. Rf5 {[%clk 0:00:19.4]} 38... Kg6 {[%clk 0:01:37.8]} 39.
Rf2 {[%clk 0:00:18.1]} 39... Bc4+ {[%clk 0:01:37.8]} 0-1

[Event "*** Titled Tuesday 3|2 Blitz"]
[Site "Chess.com"]
[Date "2016.08.02"]
[Round "1"]
[White "awb2000"]
[Black "Caisachess"]
[Result "1-0"]
[WhiteElo "2482"]
[BlackElo "2180"]
[TimeControl "180+2"]
[EndTime "11:07:26 PDT"]
[Termination "awb2000 won by resignation"]

1. d4 {[%clk 0:03:01.9]} 1... Nf6 {[%clk 0:03:00.7]} 2. c4 {[%clk 0:03:02.1]}
2... e6 {[%clk 0:03:01.9]} 3. Nf3 {[%clk 0:03:02.9]} 3... Bb4+ {[%clk
0:03:02.2]} 4. Bd2 {[%clk 0:03:03.6]} 4... a5 {[%clk 0:03:02.6]} 5. Bxb4 {[%clk
0:03:03.5]} 5... axb4 {[%clk 0:03:03.6]} 6. e3 {[%clk 0:03:05.2]} 6... d5 {[%clk
0:03:01]} 7. Nbd2 {[%clk 0:03:02.4]} 7... O-O {[%clk 0:02:55.3]} 8. Qb3 {[%clk
0:03:01.4]} 8... Qe7 {[%clk 0:02:46.3]} 9. c5 {[%clk 0:03:02.6]} 9... Nc6 {[%clk
0:02:37.1]} 10. Bb5 {[%clk 0:03:01.3]} 10... Bd7 {[%clk 0:02:34.4]} 11. Bxc6
{[%clk 0:03:01.3]} 11... bxc6 {[%clk 0:02:35.7]} 12. Qxb4 {[%clk 0:03:02.4]}
12... Rfb8 {[%clk 0:02:36.6]} 13. Qc3 {[%clk 0:03:03.5]} 13... Ne4 {[%clk
0:02:32]} 14. Nxe4 {[%clk 0:03:03.6]} 14... dxe4 {[%clk 0:02:33.4]} 15. Nd2
{[%clk 0:03:03.5]} 15... f5 {[%clk 0:02:34.4]} 16. Nc4 {[%clk 0:03:03.6]} 16...
Qg5 {[%clk 0:02:28.7]} 17. O-O {[%clk 0:03:04.2]} 17... Rf8 {[%clk 0:02:23.4]}
18. Ne5 {[%clk 0:03:05]} 18... Be8 {[%clk 0:02:21.8]} 19. f4 {[%clk 0:03:05.7]}
19... exf3 {[%clk 0:02:21.9]} 20. Rxf3 {[%clk 0:03:06.5]} 20... Bh5 {[%clk
0:02:19.2]} 21. Rg3 {[%clk 0:03:07.1]} 21... Qh6 {[%clk 0:02:15.1]} 22. a3
{[%clk 0:02:59.1]} 22... f4 {[%clk 0:02:16.3]} 23. exf4 {[%clk 0:02:59.8]} 23...
Qxf4 {[%clk 0:02:16.9]} 24. Qe3 {[%clk 0:03:00.1]} 24... Be8 {[%clk 0:01:59]}
25. Qxf4 {[%clk 0:02:58]} 25... Rxf4 {[%clk 0:02:00]} 26. Rf1 {[%clk 0:02:59.9]}
26... Rxd4 {[%clk 0:01:59.4]} 27. Rgf3 {[%clk 0:03:00.5]} 27... Bg6 {[%clk
0:01:55.9]} 28. Nxc6 {[%clk 0:02:59.3]} 28... Rd7 {[%clk 0:01:53.1]} 29. Ne5
{[%clk 0:03:00]} 29... Rd5 {[%clk 0:01:51.9]} 30. Nxg6 {[%clk 0:03:01]} 30...
hxg6 {[%clk 0:01:52.6]} 31. b4 {[%clk 0:03:02.8]} 31... c6 {[%clk 0:01:48.9]}
32. Re1 {[%clk 0:02:52.9]} 32... e5 {[%clk 0:01:45.6]} 33. Rfe3 {[%clk
0:02:53.7]} 33... Rd2 {[%clk 0:01:46.7]} 34. Rg3 {[%clk 0:02:51.4]} 34... Kh7
{[%clk 0:01:45.8]} 35. h3 {[%clk 0:02:51]} 35... Ra2 {[%clk 0:01:44.1]} 36. Rxe5
{[%clk 0:02:51.6]} 36... R2xa3 {[%clk 0:01:44.7]} 37. Rxa3 {[%clk 0:02:53.5]}
37... Rxa3 {[%clk 0:01:46.3]} 38. Re6 {[%clk 0:02:55.4]} 38... Rb3 {[%clk
0:01:47.1]} 39. Re4 {[%clk 0:02:55.9]} 39... Rb2 {[%clk 0:01:47.7]} 40. Kh2
{[%clk 0:02:56.8]} 40... Kg8 {[%clk 0:01:48.4]} 41. Rf4 {[%clk 0:02:56.2]} 41...
Rb3 {[%clk 0:01:46.9]} 42. h4 {[%clk 0:02:55.5]} 42... Kh7 {[%clk 0:01:46.6]}
43. g3 {[%clk 0:02:56.6]} 43... Kh6 {[%clk 0:01:45.6]} 44. Kh3 {[%clk
0:02:57.8]} 44... Kh5 {[%clk 0:01:45.3]} 45. Re4 {[%clk 0:02:54.5]} 45... Kh6
{[%clk 0:01:43.4]} 46. Kg4 {[%clk 0:02:55.5]} 46... Kh7 {[%clk 0:01:43.3]} 47.
Kf4 {[%clk 0:02:55.1]} 47... Kh6 {[%clk 0:01:43.6]} 48. g4 {[%clk 0:02:54.2]}
48... Rb1 {[%clk 0:01:37.4]} 49. Ke5 {[%clk 0:02:54.4]} 49... Rd1 {[%clk
0:01:36.9]} 50. Ke6 {[%clk 0:02:55.7]} 50... g5 {[%clk 0:01:30.1]} 51. h5 {[%clk
0:02:55.4]} 51... g6 {[%clk 0:01:31.5]} 52. hxg6 {[%clk 0:02:55.3]} 52... Kxg6
{[%clk 0:01:32.8]} 53. b5 {[%clk 0:02:53.5]} 53... cxb5 {[%clk 0:01:33]} 54. c6
{[%clk 0:02:55]} 54... Rc1 {[%clk 0:01:24.5]} 55. Kd7 {[%clk 0:02:51.9]} 55...
Rd1+ {[%clk 0:01:13.4]} 56. Kc8 {[%clk 0:02:52.8]} 56... b4 {[%clk 0:01:09.9]}
57. Rxb4 {[%clk 0:02:53.2]} 57... Kf6 {[%clk 0:01:10.5]} 58. Re4 {[%clk
0:02:54.2]} 58... Rc1 {[%clk 0:01:09.3]} 59. c7 {[%clk 0:02:55.5]} 59... Rc2
{[%clk 0:01:10.2]} 60. Rb4 {[%clk 0:02:51]} 60... Ke6 {[%clk 0:01:09.4]} 61. Kb7
{[%clk 0:02:51]} 61... Kd6 {[%clk 0:01:08.6]} 62. c8=Q {[%clk 0:02:49.5]} 1-0

[Event "*** Titled Tuesday 3|2 Blitz"]
[Site "Chess.com"]
[Date "2016.08.02"]
[Round "1"]
[White "Fawolizzo"]
[Black "Newlight1"]
[Result "0-1"]
[WhiteElo "2037"]
[BlackElo "2391"]
[TimeControl "180+2"]
[EndTime "11:07:26 PDT"]
[Termination "Newlight1 won by checkmate"]

1. d4 {[%clk 0:02:59.9]} 1... Nf6 {[%clk 0:03:01]} 2. Nf3 {[%clk 0:03:00.7]}
2... c5 {[%clk 0:03:02.2]} 3. c4 {[%clk 0:03:01.2]} 3... cxd4 {[%clk 0:03:03.1]}
4. Nxd4 {[%clk 0:03:02]} 4... e5 {[%clk 0:03:04.8]} 5. Nc2 {[%clk 0:03:02.5]}
5... d5 {[%clk 0:03:04.6]} 6. cxd5 {[%clk 0:03:00.2]} 6... Qxd5 {[%clk
0:03:05.8]} 7. Qxd5 {[%clk 0:03:00.5]} 7... Nxd5 {[%clk 0:03:07.7]} 8. e4 {[%clk
0:03:00.4]} 8... Nb4 {[%clk 0:03:09.1]} 9. Nxb4 {[%clk 0:03:00.2]} 9... Bxb4+
{[%clk 0:03:09.7]} 10. Bd2 {[%clk 0:03:00.5]} 10... Bxd2+ {[%clk 0:02:41]} 11.
Nxd2 {[%clk 0:03:00.9]} 11... Be6 {[%clk 0:02:41.2]} 12. Bb5+ {[%clk 0:02:59.9]}
12... Ke7 {[%clk 0:02:38.2]} 13. O-O {[%clk 0:02:57.9]} 13... a6 {[%clk
0:02:36.1]} 14. Bc4 {[%clk 0:02:57.2]} 14... Nc6 {[%clk 0:02:36.7]} 15. Bxe6
{[%clk 0:02:57.3]} 15... Kxe6 {[%clk 0:02:36.3]} 16. Nc4 {[%clk 0:02:56.9]}
16... Nd4 {[%clk 0:02:34.5]} 17. Ne3 {[%clk 0:02:54]} 17... Rac8 {[%clk
0:02:29.8]} 18. f3 {[%clk 0:02:44.2]} 18... Nc2 {[%clk 0:02:05.9]} 19. Nxc2
{[%clk 0:02:43.3]} 19... Rxc2 {[%clk 0:02:07.8]} 20. Rf2 {[%clk 0:02:44.7]}
20... Rhc8 {[%clk 0:02:06.7]} 21. Raf1 {[%clk 0:02:43.7]} 21... b5 {[%clk
0:01:50.6]} 22. g3 {[%clk 0:02:43.5]} 22... b4 {[%clk 0:01:49.2]} 23. Rxc2
{[%clk 0:02:44.2]} 23... Rxc2 {[%clk 0:01:47.6]} 24. Rf2 {[%clk 0:02:44.5]}
24... Rc1+ {[%clk 0:01:46.5]} 25. Rf1 {[%clk 0:02:44.5]} 25... Rc5 {[%clk
0:01:38.4]} 26. Rf2 {[%clk 0:02:44.6]} 26... a5 {[%clk 0:01:36]} 27. Rd2 {[%clk
0:02:39.4]} 27... Rc1+ {[%clk 0:01:31.7]} 28. Kf2 {[%clk 0:02:38.1]} 28... a4
{[%clk 0:01:32.1]} 29. Ke3 {[%clk 0:02:31.2]} 29... Ra1 {[%clk 0:01:30.8]} 30.
b3 {[%clk 0:02:22.3]} 30... axb3 {[%clk 0:01:26.6]} 31. axb3 {[%clk 0:02:22.3]}
31... Rb1 {[%clk 0:01:28]} 32. Rd3 {[%clk 0:02:23.3]} 32... g5 {[%clk
0:01:13.3]} 33. f4 {[%clk 0:02:21.2]} 33... f6 {[%clk 0:01:11.1]} 34. fxg5
{[%clk 0:02:13]} 34... fxg5 {[%clk 0:01:09.6]} 35. Kf3 {[%clk 0:02:11]} 35... h5
{[%clk 0:01:07.5]} 36. h3 {[%clk 0:02:08.7]} 36... Rb2 {[%clk 0:01:05.3]} 37. g4
{[%clk 0:02:05.1]} 37... h4 {[%clk 0:01:05.2]} 38. Rd8 {[%clk 0:01:46.1]} 38...
Rxb3+ {[%clk 0:01:02.8]} 39. Kg2 {[%clk 0:01:46.5]} 39... Rg3+ {[%clk
0:01:03.2]} 40. Kh2 {[%clk 0:01:42.2]} 40... b3 {[%clk 0:01:03.5]} 41. Rg8
{[%clk 0:01:37.6]} 41... Kd6 {[%clk 0:01:02]} 42. Rxg5 {[%clk 0:01:35.2]} 42...
b2 {[%clk 0:01:02.7]} 43. Rg6+ {[%clk 0:01:35.8]} 43... Kc5 {[%clk 0:01:03.7]}
44. Rh6 {[%clk 0:01:33.1]} 44... b1=Q {[%clk 0:01:00]} 45. Rxh4 {[%clk
0:01:31.8]} 45... Qg1# {[%clk 0:00:59.8]} 0-1

[Event "*** Titled Tuesday 3|2 Blitz"]
[Site "Chess.com"]
[Date "2016.08.02"]
[Round "1"]
[White "Saitama_Hero"]
[Black "aspired"]
[Result "1-0"]
[WhiteElo "2202"]
[BlackElo "2449"]
[TimeControl "180+2"]
[EndTime "11:07:40 PDT"]
[Termination "Saitama_Hero won by resignation"]

1. d4 {[%clk 0:03:01.9]} 1... Nf6 {[%clk 0:02:19.8]} 2. c4 {[%clk 0:03:02]} 2...
e6 {[%clk 0:02:19.8]} 3. Nc3 {[%clk 0:03:02.5]} 3... Bb4 {[%clk 0:02:19]} 4. f3
{[%clk 0:03:04]} 4... c5 {[%clk 0:02:19]} 5. a3 {[%clk 0:03:03.6]} 5... Bxc3+
{[%clk 0:02:10.6]} 6. bxc3 {[%clk 0:03:05.5]} 6... O-O {[%clk 0:02:10.1]} 7. e4
{[%clk 0:02:59.7]} 7... d6 {[%clk 0:02:09.3]} 8. d5 {[%clk 0:02:59.4]} 8... Re8
{[%clk 0:02:05.3]} 9. Ne2 {[%clk 0:02:29.1]} 9... a6 {[%clk 0:01:54.1]} 10. a4
{[%clk 0:02:27.2]} 10... Qa5 {[%clk 0:01:48.1]} 11. g4 {[%clk 0:02:09.7]} 11...
exd5 {[%clk 0:01:39.6]} 12. cxd5 {[%clk 0:02:09.6]} 12... Nxe4 {[%clk
0:01:25.8]} 13. fxe4 {[%clk 0:02:09.8]} 13... Rxe4 {[%clk 0:01:25.2]} 14. Qd3
{[%clk 0:01:56.6]} 14... Re8 {[%clk 0:01:11.3]} 15. Bh3 {[%clk 0:01:23.6]} 15...
Nd7 {[%clk 0:00:43.5]} 16. Bf4 {[%clk 0:01:19.8]} 16... Nf6 {[%clk 0:00:42.2]}
17. O-O {[%clk 0:01:14.1]} 17... Bxg4 {[%clk 0:00:36.7]} 18. Bxg4 {[%clk
0:01:14.3]} 18... Nxg4 {[%clk 0:00:38.6]} 19. Bxd6 {[%clk 0:01:10.4]} 19... Rad8
{[%clk 0:00:38.9]} 20. Bf4 {[%clk 0:00:52.1]} 20... c4 {[%clk 0:00:25.6]} 21.
Qf3 {[%clk 0:00:52.3]} 21... Nf6 {[%clk 0:00:23]} 22. d6 {[%clk 0:00:50.7]}
22... Nd5 {[%clk 0:00:19.3]} 23. Bg3 {[%clk 0:00:45.5]} 23... f6 {[%clk
0:00:20.5]} 24. Nd4 {[%clk 0:00:39.5]} 24... Qxc3 {[%clk 0:00:19.9]} 25. Qxd5+
{[%clk 0:00:39]} 25... Kh8 {[%clk 0:00:19.2]} 26. Rae1 {[%clk 0:00:36]} 26...
Rxe1 {[%clk 0:00:17.4]} 27. Rxe1 {[%clk 0:00:37.9]} 27... h5 {[%clk 0:00:15]}
28. d7 {[%clk 0:00:37.6]} 28... Kh7 {[%clk 0:00:13.7]} 29. Qxh5+ {[%clk
0:00:37.4]} 29... Kg8 {[%clk 0:00:13.7]} 30. Re8+ {[%clk 0:00:38.8]} 1-0